bitfinex/quotes_ETHUSD_20241106
["timestamp","ask_amount","ask_price","bid_price","bid_amount"]
[1730887749448,4.59016,2618.3,2617.6,0.8266]
[1730887749535,4.22829193,2618.2,2617.6,0.8266]
[1730887749731,0.28323239,2618.1,2617.7,0.04233225]
[1730887749928,4.10288239,2618.1,2617.7,0.04233225]
[1730887750172,0.28323239,2618.0,2617.3,3.82065]
[1730887750334,4.10295239,2618.0,2617.8,0.04162629]
[1730887750547,4.10295239,2618.0,2617.3,7.6413]
[1730887750548,0.69352763,2617.9,2617.3,7.6413]
[1730887750766,0.41029524,2617.9,2617.4,3.82057]
[1730887750971,0.41029524,2617.9,2617.3,3.82065]
[1730887751274,0.41029524,2617.9,2611.9,10.0]
[1730887751275,3.82066,2617.4,2616.6,4.59705]
[1730887751440,1.186166,2617.3,2616.3,0.7734]
[1730887751649,3.82125,2617.0,2616.3,0.7734]
[1730887751932,3.8041,2617.3,2616.6,3.82171]
[1730887752165,4.62492,2617.3,2616.6,3.82171]
[1730887752479,0.28324534,2617.2,2616.6,3.82167]
[1730887752655,0.8041,2617.3,2616.6,4.21147962]
[1730887752848,0.8041,2617.3,2616.8,3.82137]
[1730887753582,0.8041,2617.3,2616.7,3.82158]
[1730887753767,0.8041,2617.3,2616.8,3.82141]
[1730887754164,0.8041,2617.3,2616.8,3.82138]
[1730887754372,0.8041,2617.3,2616.6,4.21141962]
[1730887754570,3.82096,2617.2,2616.4,3.82197]
[1730887754740,1.648621,2617.3,2616.7,3.82152]
[1730887755380,1.648621,2617.3,2616.3,0.7734]
[1730887755381,0.8041,2617.3,2616.8,3.82133]
[1730887755888,3.82112,2617.1,2616.4,3.82195]
[1730887756041,3.82098,2617.2,2616.4,7.64391]
[1730887756244,0.28332011,2617.1,2616.6,3.82174]
[1730887756441,4.62485,2617.3,2616.6,3.82174]
[1730887756638,4.62485,2617.3,2616.5,3.82187]
[1730887756639,3.82089,2617.2,2616.5,3.82187]
[1730887756867,4.10429416,2617.2,2616.4,3.82195]
[1730887757087,0.28340416,2617.1,2616.5,3.82188]
[1730887757480,3.82089,2617.2,2616.5,3.82188]
[1730887757682,1.94865,2617.3,2616.6,3.82173]
[1730887757973,0.28345525,2617.2,2616.6,0.38981619]
[1730887758285,0.28345525,2617.2,2616.6,3.82168]
[1730887758687,0.28345525,2617.2,2616.7,3.82158]
[1730887758975,0.28345525,2617.2,2617.0,3.82115]
[1730887759140,0.8331,2617.6,2617.0,3.82115]
[1730887759344,0.8331,2617.6,2617.0,7.64223]
[1730887759638,1.680438,2617.6,2616.9,3.82124]
[1730887759963,4.65347,2617.6,2616.9,3.82124]
[1730887760111,0.28402614,2617.5,2616.9,3.82124]
[1730887760311,0.28402614,2617.4,2616.9,3.82124]
[1730887760590,0.28402614,2617.3,2616.9,3.82124]
[1730887760755,0.28402614,2617.2,2617.0,3.82115]
[1730887760940,8.47388,2617.6,2616.9,3.82124]
[1730887761116,3.82066,2617.4,2616.7,3.8216]
[1730887761316,0.28429609,2617.3,2616.7,3.8216]
[1730887761554,0.28429609,2617.2,2616.8,3.82134]
[1730887761864,0.28429609,2617.1,2616.7,3.82152]
[1730887762023,3.82059,2617.4,2616.7,3.82152]
[1730887762338,0.28460414,2617.3,2616.8,0.03840138]
[1730887762660,0.28460414,2617.2,2616.7,3.82152]
[1730887762824,0.28460414,2617.1,2616.9,0.03837625]
[1730887763019,0.28460414,2617.0,2616.8,0.03840138]
[1730887763256,4.7527368,2617.4,2616.7,7.64305]
[1730887763257,0.28460414,2616.9,2616.7,7.64305]
[1730887763438,4.7527368,2617.4,2616.7,8.407355]
[1730887763738,0.28497014,2617.3,2616.7,4.585825]
[1730887763955,0.28497014,2617.2,2616.8,3.82133]
[1730887764154,0.28497014,2617.1,2616.8,3.82133]
[1730887764352,0.28497014,2617.0,2616.8,3.82133]
[1730887764554,0.28497014,2616.9,2616.8,3.82133]
[1730887765262,4.65348,2617.6,2616.9,3.82129]
[1730887765431,0.28509113,2617.5,2616.9,0.7922]
[1730887765631,0.28509113,2617.4,2617.0,3.82107]
[1730887765828,0.28509113,2617.4,2616.9,4.61342]
[1730887766033,0.28509113,2617.3,2617.2,3.82086]
[1730887766436,0.28509113,2617.3,2616.9,1.253542]
[1730887766654,0.8331,2617.6,2616.9,1.253542]
[1730887766655,0.28509113,2617.2,2616.9,1.253542]
[1730887766835,0.28509113,2617.1,2617.0,3.82116]
[1730887767150,0.28509113,2617.1,2617.0,4.3286302]
[1730887768667,0.8331,2617.6,2617.0,4.3286302]
[1730887768875,0.28545324,2617.1,2617.0,4.3286302]
[1730887769032,0.28545324,2617.5,2617.1,3.82095]
[1730887769374,0.2854648,2617.4,2617.2,3.82086]
[1730887769574,0.2854648,2617.3,2617.0,7.64224]
[1730887769741,0.2854648,2617.2,2617.0,7.64224]
[1730887769936,0.2854648,2617.1,2617.0,3.82108]
[1730887770136,0.2854648,2617.1,2617.0,0.8895902]
[1730887770475,0.2854648,2617.1,2616.9,3.82128]
[1730887770675,0.2854648,2617.0,2616.8,3.82144]
[1730887770829,0.2854648,2616.9,2616.6,0.7648]
[1730887771026,0.2854648,2616.8,2616.7,3.82154]
[1730887771274,0.2854648,2616.8,2616.5,3.82188]
[1730887771468,0.2854648,2616.7,2616.6,3.82169]
[1730887772478,0.7883,2617.1,2616.7,3.82153]
[1730887772774,0.28578452,2617.0,2616.7,3.82153]
[1730887772975,0.28578452,2616.9,2616.6,3.82173]
[1730887773148,0.28578452,2616.8,2616.6,3.82173]
[1730887773480,0.28578452,2616.7,2616.6,3.82173]
[1730887774037,0.28578452,2616.7,2616.5,3.82188]
[1730887774271,0.28578452,2616.6,2616.5,3.82188]
[1730887775888,0.7883,2617.1,2616.5,3.82188]
[1730887776233,4.60934,2617.1,2616.5,3.82188]
[1730887776433,0.28584691,2617.0,2616.5,3.82188]
[1730887776681,0.28584691,2616.9,2616.5,3.82188]
[1730887776841,0.28584691,2616.8,2616.5,3.82188]
[1730887777042,0.28584691,2616.7,2616.5,3.82188]
[1730887777272,4.60934,2617.1,2616.6,0.03850305]
[1730887777582,0.28582777,2617.0,2616.6,0.03850305]
[1730887777787,0.28582777,2616.9,2616.6,0.03850305]
[1730887777934,0.28582777,2616.8,2616.7,3.8216]
[1730887778138,0.28582777,2616.8,2616.7,0.03847792]
[1730887778968,0.28582777,2616.8,2616.7,3.86007792]
[1730887779167,0.28582777,2616.8,2616.7,4.63589684]
[1730887779896,0.57174912,2616.8,2616.7,0.03847792]
[1730887780049,0.28592135,2616.8,2616.4,3.82203]
[1730887780250,0.28592135,2616.7,2616.0,6.82253]
[1730887780477,0.28592135,2616.6,2616.1,3.82247]
[1730887780689,1.07022135,2616.5,2616.2,0.037232]
[1730887780887,0.28592135,2616.4,2616.2,0.037232]
[1730887781191,0.28592135,2616.3,2616.2,0.037232]
[1730887781684,0.28592135,2616.3,2616.2,0.03614254]
[1730887782093,0.28592135,2616.3,2616.2,0.03632068]
[1730887782266,0.28592135,2616.3,2615.7,3.82306]
[1730887782466,0.28592135,2616.2,2615.8,3.85931531]
[1730887784808,0.28577175,2616.2,2616.1,3.82247]
[1730887785157,0.28577175,2616.2,2616.0,3.8226]
[1730887785355,0.7843,2616.5,2616.0,3.8226]
[1730887785607,0.28568995,2616.4,2616.0,3.8226]
[1730887785899,0.28568995,2616.3,2616.0,3.8226]
[1730887786095,0.28568995,2616.2,2616.0,3.8226]
[1730887786395,0.7843,2616.5,2616.1,3.82248]
[1730887786593,0.28560216,2616.4,2616.1,4.204728]
[1730887786796,0.7843,2616.5,2616.1,4.204728]
[1730887787227,0.28560532,2616.4,2616.1,3.82248]
[1730887787548,4.10780532,2616.3,2615.7,3.82305]
[1730887787823,0.28560532,2616.2,2615.7,3.82305]
[1730887788319,0.28560532,2616.1,2615.7,3.82298]
[1730887788519,0.28560532,2616.0,2615.7,3.82298]
[1730887788719,0.28560532,2615.9,2615.7,3.82298]
[1730887788923,3.8222,2616.3,2615.7,3.82298]
[1730887789223,0.7835,2616.1,2615.5,4.59193]
[1730887789386,0.28549217,2616.0,2615.5,8.41522]
[1730887789587,0.28549217,2615.9,2615.5,8.41522]
[1730887789786,0.7835,2616.1,2615.5,8.41522]
[1730887790003,0.28542025,2616.0,2615.5,8.41522]
[1730887790290,0.28542025,2615.9,2615.5,9.556742]
[1730887790487,0.28542025,2615.9,2615.5,3.82334]
[1730887791027,0.28534443,2615.8,2615.4,3.82349]
[1730887791200,0.28534443,2615.8,2615.5,3.82334]
[1730887791410,0.5706906,2615.8,2615.5,3.82334]
[1730887791729,0.28534443,2615.8,2615.5,3.82334]
[1730887791886,0.28534443,2615.8,2614.8,0.7859]
[1730887792093,3.82321,2615.6,2615.0,3.82398]
[1730887792291,0.28518939,2615.5,2615.1,0.03697201]
[1730887792529,4.72232671,2615.6,2614.8,4.61028]
[1730887792738,0.28519549,2615.5,2614.9,3.86097424]
[1730887792894,0.28519549,2615.4,2614.9,3.86097424]
[1730887793110,0.28519549,2615.3,2614.9,3.86097424]
[1730887793313,3.82344,2615.5,2614.9,3.86097424]
[1730887793523,3.82344,2615.5,2614.9,7.68513424]
[1730887793524,0.75727992,2615.4,2614.9,7.68513424]
[1730887793831,0.28502425,2615.3,2614.9,3.86097424]
[1730887794134,0.47225567,2615.4,2614.9,3.86097424]
[1730887794693,0.28502569,2615.3,2614.9,3.86097424]
[1730887794892,0.47225567,2615.4,2614.9,3.86097424]
[1730887795128,0.2848612,2615.3,2614.9,3.86097424]
[1730887795326,4.29577567,2615.4,2614.9,0.03682424]
[1730887795634,0.7567,2615.3,2614.8,3.82436]
[1730887796005,0.7567,2615.3,2614.9,0.03694725]
[1730887796314,0.7567,2615.3,2614.7,7.64886]
[1730887796522,0.7567,2615.3,2614.8,0.03697241]
[1730887796932,3.82395,2615.1,2614.8,0.03697241]
[1730887797224,3.82411,2615.0,2614.4,3.82488]
[1730887797421,3.82411,2615.0,2614.9,0.03689158]
[1730887797643,4.65621,2615.0,2614.4,3.82488]
[1730887797939,0.48225567,2615.4,2614.2,3.9017361]
[1730887798107,0.8321,2614.6,2614.3,0.03718775]
[1730887798307,0.46567,2614.5,2614.1,3.8253]
[1730887798608,0.8321,2614.9,2614.2,0.11365374]
[1730887798793,0.8321,2614.9,2614.4,3.82488]
[1730887798995,0.8321,2614.9,2614.3,3.82511]
[1730887799200,4.10885181,2614.8,2614.5,0.03706132]
[1730887799399,3.82439,2614.8,2614.4,0.03708649]
[1730887799719,3.82439,2614.8,2614.5,0.03707027]
[1730887799924,3.82439,2614.8,2614.2,3.82517]
[1730887800239,3.82439,2614.8,2614.3,0.03710271]
[1730887800636,4.65634,2614.9,2614.3,3.82508]
[1730887800814,0.28441251,2614.8,2614.4,0.03706859]
[1730887801011,0.8321,2614.9,2614.5,3.82473]
[1730887801426,7.29582567,2615.4,2614.6,0.03577105]
[1730887801711,7.29582567,2615.4,2614.4,1.18621486]
[1730887801712,1.09229667,2615.3,2614.8,3.82438]
[1730887801915,1.09229667,2615.3,2614.9,3.85999267]
[1730887802236,0.7615,2615.5,2614.9,3.85992267]
[1730887802567,0.28424428,2615.4,2615.1,3.82392]
[1730887802707,0.7615,2615.5,2615.0,3.82395]
[1730887802909,0.7615,2615.5,2615.0,3.86056038]
[1730887803108,0.7615,2615.5,2615.0,0.03661038]
[1730887803109,4.58487,2615.5,2615.0,0.03661038]
[1730887803437,4.58487,2615.5,2614.8,4.206708]
[1730887803438,5.425679,2615.5,2614.8,4.206708]
[1730887803604,5.425679,2615.5,2615.1,0.03662995]
[1730887803800,3.82351,2615.4,2614.8,3.82427]
[1730887804051,4.90504503,2615.3,2615.2,0.03660479]
[1730887804220,3.82431,2614.9,2614.2,7.65032]
[1730887804549,4.62155,2614.8,2614.3,0.03684916]
[1730887804720,3.82476,2614.6,2613.9,3.82568]
[1730887804921,3.82476,2614.6,2614.0,0.03688441]
[1730887805131,4.669384,2614.6,2614.0,3.82553]
[1730887805318,4.669384,2614.6,2614.1,0.03685923]
[1730887805319,0.844624,2614.6,2614.1,0.03685923]
[1730887805848,0.844624,2614.6,2614.1,3.86214923]
[1730887806053,0.7971,2614.8,2614.2,3.82516]
[1730887806349,4.10889977,2614.7,2614.3,0.03683573]
[1730887806556,0.28429977,2614.6,2614.1,3.82529]
[1730887806711,8.44604,2614.8,2614.2,0.03686091]
[1730887806916,0.28427709,2614.7,2614.2,0.03686091]
[1730887807244,8.44604,2614.8,2614.2,0.03686091]
[1730887807245,0.28427709,2614.6,2614.2,0.03686091]
[1730887807452,0.28427709,2614.7,2614.3,3.82504]
[1730887807653,0.7971,2614.8,2614.2,0.7505]
[1730887807816,0.28425705,2614.7,2614.4,0.03681056]
[1730887808015,0.7861,2614.6,2614.3,0.03683573]
[1730887808259,0.461073,2614.5,2614.0,3.82547]
[1730887808419,0.7861,2614.6,2614.1,3.82537]
[1730887809358,0.7861,2614.6,2614.1,3.82532]
[1730887809747,0.7861,2614.6,2614.2,3.82525]
[1730887809942,0.7861,2614.6,2614.1,3.8254]
[1730887811059,0.7861,2614.6,2614.0,3.82555]
[1730887811368,0.8042,2615.0,2614.1,0.8006]
[1730887811656,0.8069,2615.3,2614.9,3.82417]
[1730887811866,0.8069,2615.3,2615.0,3.82406]
[1730887812023,0.2844839,2615.2,2615.0,3.82406]
[1730887812219,0.8069,2615.6,2615.0,3.82406]
[1730887812417,1.269906,2615.6,2615.1,3.82386]
[1730887812822,0.28452698,2615.5,2615.0,3.82397]
[1730887813062,0.28452698,2615.4,2615.0,7.64797]
[1730887813272,0.28455274,2615.3,2615.0,3.82397]
[1730887813565,0.8069,2615.6,2615.1,3.82385]
[1730887813730,0.28461559,2615.5,2615.1,3.82385]
[1730887813937,0.28461559,2615.4,2615.1,3.82385]
[1730887814245,0.28465763,2615.3,2615.0,3.82397]
[1730887814462,0.28465763,2615.2,2615.0,3.82397]
[1730887814621,0.8069,2615.6,2614.8,3.82428]
[1730887814972,4.87116059,2615.5,2614.8,7.64857]
[1730887815186,0.28476259,2615.4,2614.8,3.82428]
[1730887815326,0.28476259,2615.3,2614.8,3.82428]
[1730887815672,4.86758259,2615.2,2614.6,3.82458]
[1730887815830,0.759,2615.2,2614.6,3.8246]
[1730887816030,1.21726,2615.2,2614.6,3.8246]
[1730887816439,0.28492708,2615.1,2614.6,3.8246]
[1730887816638,0.28492708,2615.0,2614.5,3.82482]
[1730887816850,0.28492708,2614.9,2614.7,3.82443]
[1730887817064,0.28492708,2614.8,2614.7,3.82443]
[1730887818196,0.28492708,2614.8,2614.5,3.8248]
[1730887818476,0.28492708,2614.7,2614.5,3.8248]
[1730887818670,0.28492708,2614.7,2614.5,3.82482]
[1730887818878,4.58287,2615.2,2614.5,3.82482]
[1730887818879,0.28492708,2614.6,2614.5,3.82482]
[1730887819242,0.28492708,2614.6,2614.5,5.371137]
[1730887819680,5.344428,2615.5,2614.8,3.82435]
[1730887819858,0.2854406,2615.4,2614.5,4.5754]
[1730887820176,0.2854406,2615.3,2614.5,0.7506]
[1730887820378,0.2854406,2615.2,2614.7,3.82439]
[1730887820674,0.2854406,2615.1,2614.8,3.82435]
[1730887820871,0.2854406,2615.0,2614.6,3.82467]
[1730887821084,0.2854406,2614.9,2614.6,3.82467]
[1730887821255,0.2854406,2614.8,2614.5,3.82481]
[1730887821456,0.7534,2615.0,2614.5,3.82481]
[1730887821457,0.2854406,2614.7,2614.6,3.82465]
[1730887822038,0.2854406,2614.7,2614.6,3.86133305]
[1730887823186,0.2854406,2614.7,2614.6,0.03668305]
[1730887823382,0.2854406,2614.7,2614.4,3.82495]
[1730887823688,0.2854406,2614.6,2614.4,3.82495]
[1730887823981,0.2854406,2614.5,2614.2,4.58956]
[1730887824181,0.2854406,2614.4,2614.2,4.58956]
[1730887824358,3.82434,2614.9,2614.2,4.58956]
[1730887824559,1.05073585,2614.8,2614.3,3.82507]
[1730887824752,0.28588485,2614.7,2614.3,3.82507]
[1730887824960,0.28588485,2614.6,2614.4,3.82496]
[1730887825256,0.28588485,2614.5,2614.4,3.82496]
[1730887826095,0.28590467,2614.5,2614.4,3.82496]
[1730887826293,0.28590467,2614.5,2614.3,3.8251]
[1730887826450,0.28590467,2614.4,2614.2,3.82524]
[1730887826798,7.64834,2615.0,2614.3,3.82511]
[1730887826974,1.13290194,2614.9,2614.3,3.82511]
[1730887827279,0.28591794,2614.8,2614.3,3.82511]
[1730887827480,0.28591794,2614.8,2614.4,3.82493]
[1730887827786,0.28591794,2614.7,2613.9,0.7729]
[1730887827949,0.28591794,2614.6,2614.0,0.07649904]
[1730887828148,0.28591794,2614.5,2614.0,0.07649904]
[1730887828365,0.28591794,2614.4,2613.9,1.17197617]
[1730887828571,0.8215,2615.1,2614.0,0.8023]
[1730887828887,0.28592828,2615.0,2614.0,0.8023]
[1730887829072,0.28592828,2614.9,2614.0,0.8023]
[1730887829267,0.28592828,2614.8,2614.0,0.8023]
[1730887829810,0.28592828,2614.7,2614.0,0.8023]
[1730887830106,0.28592828,2614.6,2614.0,0.8023]
[1730887830286,0.28592828,2614.5,2614.0,0.8023]
[1730887830496,0.8215,2615.1,2614.1,0.07649406]
[1730887830672,0.28593119,2615.0,2614.3,0.7718]
[1730887830997,1.16125287,2615.5,2614.0,3.01]
[1730887830998,0.28593119,2614.9,2614.1,0.55]
[1730887831202,1.08863119,2614.8,2614.3,0.7718]
[1730887831511,0.28593119,2614.7,2614.3,0.7718]
[1730887831809,0.28593119,2614.6,2614.3,0.7718]
[1730887832107,0.8027,2615.0,2614.3,0.7718]
[1730887832414,0.28593342,2614.9,2614.3,0.7718]
[1730887832572,0.28593342,2614.8,2614.3,0.7718]
[1730887832771,0.28593342,2614.7,2614.3,0.7718]
[1730887833072,0.8109,2615.5,2614.3,0.7718]
[1730887833273,1.04934754,2615.4,2614.3,0.7718]
[1730887833473,0.28593654,2615.3,2614.3,0.7718]
[1730887833773,0.28593654,2615.2,2614.3,0.7718]
[1730887834096,0.7942,2615.7,2614.6,0.7721]
[1730887834295,0.28581539,2615.6,2614.8,0.7721]
[1730887834498,0.28581539,2615.5,2614.8,0.7721]
[1730887834685,0.28581539,2615.4,2614.9,0.0763314]
[1730887834869,4.62614,2616.2,2615.0,0.83]
[1730887835066,0.28578845,2616.1,2615.0,0.83]
[1730887835281,0.28578845,2616.0,2615.0,0.83]
[1730887835512,0.28578845,2615.9,2615.1,0.07642024]
[1730887835714,0.28578845,2615.8,2615.0,0.83]
[1730887835938,0.28578845,2615.7,2615.2,0.0763746]
[1730887836132,0.28578845,2615.6,2615.1,0.07642024]
[1730887836333,3.8225,2616.1,2615.3,0.07636689]
[1730887836551,0.74820901,2616.0,2615.2,0.07639356]
[1730887836703,0.28557901,2615.9,2615.0,0.83]
[1730887836901,0.46263,2616.0,2615.0,0.83]
[1730887836902,0.28557901,2615.8,2615.0,0.83]
[1730887837136,0.8161,2615.6,2615.1,0.07642024]
[1730887837324,0.28557901,2615.5,2615.1,0.07642024]
[1730887837532,0.28557901,2615.4,2615.1,0.07642024]
[1730887837725,0.28557901,2615.3,2614.7,0.8244]
[1730887837930,0.8161,2615.6,2615.2,0.07602722]
[1730887838146,0.28557791,2615.5,2614.7,0.8244]
[1730887838317,0.28557791,2615.4,2615.3,0.07600054]
[1730887838648,0.28557791,2615.4,2614.7,0.8244]
[1730887838833,3.01,2616.2,2614.7,0.8244]
[1730887838834,0.828,2615.8,2614.7,0.8244]
[1730887839006,0.28555504,2615.7,2614.8,0.07616238]
[1730887839208,0.28555504,2615.6,2614.8,0.07616238]
[1730887839441,0.28555504,2615.5,2614.8,0.07616238]
[1730887839658,0.828,2615.8,2614.8,0.07616238]
[1730887839827,0.28554437,2615.7,2614.8,0.07616238]
[1730887840034,0.28554437,2615.6,2614.9,0.7561]
[1730887840233,0.28554437,2615.5,2614.9,0.7561]
[1730887840468,0.828,2615.8,2614.9,0.7561]
[1730887840662,0.28555424,2615.7,2614.9,0.7561]
[1730887840960,0.28555424,2615.6,2614.9,0.7561]
[1730887841127,0.28555424,2615.5,2614.9,0.7561]
[1730887841324,0.28555424,2615.4,2614.9,0.7561]
[1730887841626,0.28555424,2615.3,2614.3,0.7781]
[1730887841827,0.49364742,2615.7,2614.4,0.07625018]
[1730887842128,0.80008498,2615.6,2614.5,0.7781]
[1730887842459,0.28562824,2615.5,2614.6,0.0761968]
[1730887842771,0.28562824,2615.4,2614.6,0.0761968]
[1730887842921,0.28562824,2615.3,2614.6,0.0761968]
[1730887843122,0.828,2615.8,2614.6,0.0761968]
[1730887843479,0.28558925,2615.7,2614.7,0.8307]
[1730887843766,0.28558925,2615.6,2614.7,0.8307]
[1730887843934,0.28558925,2615.5,2614.7,0.8307]
[1730887844141,0.28558925,2615.4,2614.7,0.8307]
[1730887844343,0.28559039,2615.3,2614.7,0.8307]
[1730887844542,0.828,2615.8,2614.7,0.8307]
[1730887844763,0.75065742,2615.7,2614.7,0.8307]
[1730887845057,0.28557742,2615.6,2614.7,0.8307]
[1730887845358,0.28557742,2615.5,2614.7,0.8307]
[1730887845549,0.28557742,2615.4,2614.7,0.8307]
[1730887845731,0.828,2615.8,2614.7,0.8307]
[1730887845732,3.82311,2615.7,2614.7,0.8307]
[1730887845938,0.28556575,2615.6,2614.7,0.8307]
[1730887846141,0.8309,2615.4,2614.7,0.8307]
[1730887846458,0.28556575,2615.3,2614.7,0.8307]
[1730887846651,0.8309,2615.4,2614.7,0.8307]
[1730887847238,0.28558827,2615.3,2614.7,0.8307]
[1730887847637,0.28558827,2615.2,2614.7,0.8307]
[1730887847973,0.8309,2615.4,2614.7,0.8307]
[1730887848139,0.28561521,2615.3,2614.7,0.8307]
[1730887848340,0.8309,2615.4,2614.7,0.8307]
[1730887848341,0.28561521,2615.2,2614.7,0.8307]
[1730887848537,0.8309,2615.4,2614.7,0.8307]
[1730887848763,0.28563759,2615.3,2614.7,0.8307]
[1730887849049,0.28563563,2615.2,2614.7,0.8307]
[1730887849256,0.8309,2615.4,2614.7,0.8307]
[1730887849576,0.8164,2615.7,2614.7,0.8307]
[1730887849870,0.28563501,2615.6,2614.7,0.8307]
[1730887850075,0.28563501,2615.5,2614.7,0.8307]
[1730887850277,0.28563501,2615.4,2614.7,0.8307]
[1730887850488,0.28563501,2615.3,2614.7,0.8307]
[1730887850951,0.28565382,2615.2,2614.8,0.07624586]
[1730887851148,4.3157575,2615.6,2614.8,0.07624586]
[1730887851341,0.79889228,2615.5,2614.8,0.07624586]
[1730887851543,4.90621653,2615.4,2614.8,0.07624586]
[1730887851872,0.28567653,2615.3,2614.5,0.8257]
[1730887852086,0.28567653,2615.2,2614.9,0.07621103]
[1730887852256,0.28567653,2615.1,2614.5,0.8257]
[1730887852571,0.28567653,2615.0,2614.6,0.07632367]
[1730887852783,3.82365,2615.3,2614.6,0.07632367]
[1730887852982,1.13013333,2615.2,2614.5,0.8257]
[1730887853270,0.28571833,2615.1,2614.5,0.8257]
[1730887853576,0.28571833,2615.0,2614.5,0.8257]
[1730887853775,0.844415,2615.2,2614.5,0.8257]
[1730887853972,0.28573929,2615.1,2614.5,0.8257]
[1730887854379,0.844415,2615.2,2614.5,0.8257]
[1730887854617,0.28573931,2615.0,2614.6,0.07632077]
[1730887854891,0.844415,2615.2,2614.5,0.8257]
[1730887855088,0.28577358,2615.1,2614.5,0.8257]
[1730887855247,0.28577358,2615.0,2614.5,0.8257]
[1730887855451,0.28577358,2614.9,2614.6,0.07632077]
[1730887855691,0.844415,2615.2,2614.6,0.07632077]
[1730887855853,0.28583158,2615.1,2614.6,0.07632077]
[1730887856186,0.844415,2615.2,2614.5,0.8257]
[1730887856187,0.28583158,2615.0,2614.5,0.8257]
[1730887856360,0.7969,2615.4,2614.5,0.8257]
[1730887856563,0.79921332,2615.3,2614.6,0.07632077]
[1730887856766,0.28586474,2615.2,2614.7,0.07629408]
[1730887857092,0.28586474,2615.1,2614.5,0.8257]
[1730887857267,0.28586474,2615.0,2614.8,0.07626739]
[1730887857591,0.28586474,2614.9,2614.5,0.8257]
[1730887857790,0.51334858,2615.3,2614.5,0.8257]
[1730887857957,0.51337686,2615.2,2614.6,0.0763018]
[1730887858150,0.7992919,2615.2,2614.6,0.0763018]
[1730887858575,0.7992919,2615.2,2614.5,0.8257]
[1730887858764,0.28591504,2615.1,2614.5,0.8257]
[1730887858962,0.28591504,2615.0,2614.6,0.07631128]
[1730887859155,0.51337686,2615.2,2614.5,0.8257]
[1730887859485,0.28595485,2615.1,2614.6,0.07632077]
[1730887859691,0.28595485,2615.0,2614.6,0.07632077]
[1730887859885,0.28595485,2614.9,2614.5,0.8257]
[1730887860091,0.51337686,2615.2,2614.7,0.0740522]
[1730887860391,0.28599016,2615.1,2614.6,0.0740694]
[1730887860593,0.28599016,2615.0,2614.8,0.07400655]
[1730887860815,0.51321575,2615.5,2614.9,0.8164]
[1730887861095,4.33658575,2615.5,2614.3,0.8164]
[1730887861296,4.33321858,2615.4,2614.3,1.27615644]
[1730887861456,4.33321858,2615.4,2614.4,0.0740686]
[1730887861792,0.28603453,2615.3,2614.4,0.0740686]
[1730887861999,0.28603453,2615.2,2614.4,0.0740686]
[1730887862170,0.28603453,2615.1,2614.4,0.0740686]
[1730887862497,0.28603453,2615.0,2614.4,0.0740686]
[1730887862654,0.28603453,2614.9,2614.4,0.0740686]
[1730887862992,0.28603453,2614.8,2614.4,0.0740686]
[1730887863192,4.6318,2615.2,2614.4,0.0740686]
[1730887863351,4.57325957,2615.1,2614.4,0.0740686]
[1730887863549,0.28606957,2615.0,2614.3,0.8164]
[1730887863752,0.28606957,2614.9,2614.5,0.07402565]
[1730887863982,4.28719,2615.1,2614.3,0.8164]
[1730887864190,0.28609224,2614.9,2614.3,0.8164]
[1730887864691,0.28609224,2614.8,2614.3,0.8164]
[1730887864876,0.28609224,2614.7,2614.3,0.8164]
[1730887865078,4.28719,2615.1,2614.3,0.8164]
[1730887865262,0.79554681,2615.0,2614.3,0.8164]
[1730887865462,0.28602781,2614.9,2614.3,0.8164]
[1730887865674,0.28602781,2614.8,2614.3,0.8164]
[1730887865903,0.28602781,2614.7,2614.4,0.071607]
[1730887866051,0.28602781,2614.6,2614.4,0.071607]
[1730887866255,3.82395,2615.1,2614.4,0.071607]
[1730887866477,0.74927985,2615.0,2614.4,0.071607]
[1730887866699,0.28608485,2614.9,2614.3,0.8164]
[1730887866893,0.28608485,2614.8,2614.3,0.8164]
[1730887867093,0.28608485,2614.7,2614.4,0.07165442]
[1730887867392,3.82425,2614.9,2614.4,0.07165442]
[1730887867596,3.82477,2614.6,2614.4,0.07165442]
[1730887868098,3.82477,2614.6,2613.8,0.7696]
[1730887868262,7.64959,2614.6,2613.8,0.7696]
[1730887868467,0.28611934,2614.5,2613.8,0.7696]
[1730887868880,0.7565,2614.3,2613.8,0.7696]
[1730887869093,0.28611934,2614.2,2613.6,0.8722757]
[1730887869306,0.28611934,2614.1,2613.6,0.8722757]
[1730887869477,0.7565,2614.3,2613.6,0.8722757]
[1730887869659,0.28592277,2614.2,2613.6,0.8722757]
[1730887869870,0.7565,2614.3,2613.6,0.8722757]
[1730887870097,0.2859081,2614.2,2613.6,0.8722757]
[1730887870413,0.7565,2614.3,2613.6,0.8722757]
[1730887870701,0.28584961,2614.2,2613.6,0.8722757]
[1730887871006,1.21464,2614.3,2613.6,0.8722757]
[1730887871160,0.28584964,2614.2,2613.6,0.8722757]
[1730887871503,3.8248,2614.6,2613.8,0.7785]
[1730887871504,0.8173,2614.6,2613.8,0.7785]
[1730887871669,0.28574152,2614.5,2613.9,0.0765058]
[1730887872000,0.28574152,2614.4,2613.8,0.7785]
[1730887872169,0.8173,2614.6,2613.8,0.7785]
[1730887872503,0.28570711,2614.5,2613.8,0.7785]
[1730887872704,0.28570711,2614.4,2613.8,0.7785]
[1730887873008,0.28570711,2614.3,2613.8,0.7785]
[1730887873203,0.28570711,2614.5,2613.8,0.7785]
[1730887873416,0.28569682,2614.4,2613.8,0.7785]
[1730887873611,1.281469,2614.6,2613.8,0.7785]
[1730887873791,0.28568976,2614.5,2613.8,0.7785]
[1730887873994,0.28568976,2614.4,2613.8,0.7785]
[1730887874199,0.5106009,2614.5,2613.8,0.7785]
[1730887874503,0.28569535,2614.4,2613.8,0.7785]
[1730887874817,0.28569535,2614.3,2613.8,0.7785]
[1730887875113,0.28569535,2614.2,2613.8,0.7785]
[1730887875288,0.5106009,2614.5,2613.8,0.7785]
[1730887875625,0.28569739,2614.4,2613.8,0.7785]
[1730887875912,0.464169,2614.6,2613.8,0.7785]
[1730887876076,0.28568011,2614.3,2613.8,0.7785]
[1730887876275,3.82498,2614.4,2613.9,0.0700498]
[1730887876475,3.82498,2614.4,2613.8,0.7785]
[1730887876791,0.28568745,2614.3,2613.8,0.7785]